Cogmind - Beta 14 @@@ ROGUE MODE // 2024.09.08 @ 20:58:43 Player: Lunace Result: Self-destructed Performance ------------- Evolutions (6) 3000 Regions Visited (11) 2200 Robots Destroyed (40) 200 Value Destroyed (1222) 1222 Prototype IDs (25) 500 Alien Tech Used (0) 0 Bonus (2742) 2742 TOTAL SCORE: 9864 Bonus ------- High Alert Combat Kills 28 Follower Combat Kills 516 Delivered SUBCON Basin 2000 Registered with UFD 300 Friendly Fire -102 Cogmind --------- Core Integrity 740/1150 Matter 217/300 Energy 100/100 System Corruption 0% Temperature Cool (0) Movement Core (50) Location -4/Factory Parts ------- > --- POWER (2) -------- (None) > --- PROPULSION (4) --- (None) > --- UTILITY (9) ------ Improved Signal Interpreter Improved Transmission Jammer Hacking Suite System Shield System Shield Tech Extrapolator > --- WEAPON (4) ------- (None) > --- INVENTORY (5) ---- Advanced Medium Treads Advanced Heavy Siege Treads Faulty Compact Tesla Bomb Launcher Force Lance Peak State ------------ > --- POWER ------------ (None) > --- PROPULSION ------- Advanced Medium Treads Centrium Wheel Centrium Wheel Centrium Wheel > --- UTILITY ---------- Advanced Cryofiber Web Medium Storage Unit Improved Signal Interpreter Advanced Melee Analysis Suite Improved Transmission Jammer Improved Reaction Control System Hacking Suite System Shield Tech Extrapolator > --- WEAPON ----------- Thermic Laser Advanced Plasma Rifle Advanced Plasma Rifle Compact Tesla Bomb Launcher > --- INVENTORY -------- Advanced Heavy Treads Advanced Heavy Siege Treads Force Lance [Rating: 100] Favorites ----------- Power Ion Engine Engine Ion Engine Propulsion Light Treads Treads Light Treads Leg Carbon-fiber Leg Wheel Centrium Wheel Flight Unit Nuclear Pulse Thruster Utility Rainbow Chip Device Advanced Heat Sink Storage Large Storage Unit Processor Rainbow Chip Hackware Hacking Suite Protection Makeshift Light Armor Plating Weapon Subdweller Laser Energy Gun Subdweller Laser Energy Cannon Subdweller Beam Cannon Ballistic Gun Assault Rifle Ballistic Cannon Battle Cannon Launcher Grenade Launcher Special Weapon Mining Laser Slashing Weapon Axe Build | -11 -10 -10 -9 -9 -6 -6 -6 -5 -5 -5 -4 ------- Run | Yrd Mat Sub Rec Scr Fac Was Fac Fac Was Fac Fac Slots Evolved 12 | . . . . . 8 . . 2 . . 2 Power 1 | . . . . . . . . 1 . . . Propulsion 2 | . . . . . 1 . . 1 . . . Utility 7 | . . . . . 6 . . . . . 1 Weapon 2 | . . . . . 1 . . . . . 1 Parts Attached 94 | 7 11 18 1 5 33 . . 2 . 1 16 Power 8 | 1 2 1 . 2 2 . . . . . . Engine 8 | 1 2 1 . 2 2 . . . . . . Core . | . . . . . . . . . . . . Reactor . | . . . . . . . . . . . . Propulsion 26 | 2 2 5 . 1 8 . . . . 1 7 Treads 14 | 2 2 5 . 1 . . . . . . 4 Leg 6 | . . . . . 6 . . . . . . Wheel 3 | . . . . . . . . . . . 3 Hover . | . . . . . . . . . . . . Flight 3 | . . . . . 2 . . . . 1 . Utility 29 | 2 4 3 1 . 13 . . 2 . . 4 Device 13 | 1 . . . . 8 . . 2 . . 2 Storage 5 | 1 2 1 . . . . . . . . 1 Processor 5 | . . 1 1 . 3 . . . . . . Hackware 4 | . 1 . . . 2 . . . . . 1 Protection 2 | . 1 1 . . . . . . . . . Artifact . | . . . . . . . . . . . . Weapon 31 | 2 3 9 . 2 10 . . . . . 5 Energy Gun 10 | . . 1 . . 5 . . . . . 4 Energy Cannon 3 | . . 2 . 1 . . . . . . . Ballistic Gun 10 | 2 1 4 . 1 2 . . . . . . Ballistic Cannon 2 | . . 2 . . . . . . . . . Launcher 3 | . . . . . 2 . . . . . 1 Special Weapon 2 | . 2 . . . . . . . . . . Impact Weapon . | . . . . . . . . . . . . Slashing Weapon 1 | . . . . . 1 . . . . . . Piercing Weapon . | . . . . . . . . . . . . Special Melee Weapon . | . . . . . . . . . . . . Unidentified Prototypes 2 | . . . . . . . . . . . 2 Parts Lost 36 | . 1 1 . . 22 . . . . 4 8 Power 3 | . . . . . 3 . . . . . . Propulsion 12 | . . . . . 6 . . . . 2 4 Utility 13 | . 1 . . . 8 . . . . 2 2 Weapon 8 | . . 1 . . 5 . . . . . 2 Highest Loss Streak 13 | . 1 1 . . 13 . . . . 4 8 To Critical Strikes 2 | . . . . . . . . . . . 2 Average Slot Usage (%) 93 | . 98 97 99 98 71 53 53 52 58 55 64 Engine 15 | . 13 17 20 20 5 . . . . . . Treads 26 | . 28 28 30 33 8 . . . . . 6 Device 2 | . 4 . . . 18 6 6 11 17 14 8 Storage 6 | . 14 10 9 . . . . . . . 3 Processor 12 | . . 7 10 22 17 20 20 17 17 17 12 Hackware 1 | . 3 . . . 2 13 13 11 11 11 12 Protection 4 | . 5 10 9 . . . . . . . . Energy Gun 4 | . . 1 10 8 5 . . . . . 10 Energy Cannon 2 | . . 5 . 2 1 . . . . . . Ballistic Gun 10 | . 24 8 10 11 3 . . . . . . Ballistic Cannon 2 | . . 6 . . . . . . . . . Peak Build Rating 100 | 7 9 46 46 39 81 33 33 44 48 54 100 Average Rating 31 | 5 7 26 45 34 52 33 33 39 46 45 69 On Entrance 28 | . 7 8 46 29 35 33 33 33 44 48 30 Naked Turns . | . . . . . . . . . . . . Heaviest Build 47 | 15 31 47 42 27 29 4 4 6 6 6 31 Greatest Support 90 | 40 40 60 60 60 60 6 6 6 6 13 90 Greatest Overweight (x) 1 | . . . . . 1 . . . . . . Average Overweight (x) . | . . . . . . . . . . . . Largest Inventory Capacity 15 | 8 15 15 15 5 5 5 5 5 5 5 10 Average Capacity 9 | 7 9 14 14 5 5 5 5 5 5 5 8 Most Carried 15 | 4 10 15 15 5 5 2 2 2 5 5 6 Average Carried 7 | 2 6 13 14 3 2 1 2 2 4 5 5 Final Capacity 15 | 8 15 15 5 5 5 5 5 5 5 5 5 Final Carried 15 | 4 10 15 2 5 1 2 2 2 5 5 5 Class Distribution -------------------- 62% | Mutant 15% | Derelict-Mutant 7% | Derelict-Tank 5% | Hacker-Mutant Dominant Class ---------------- Mutant | -10/Materials Mutant | -10/Subcaves Mutant | -9/Recycling Mutant | -9/Scraptown Scavenger-Tank | -6/Factory Hacker-Mutant | -6/Waste Hacker-Mutant | -6/Factory Hacker-Mutant | -5/Factory Hacker-Mutant | -5/Waste Hacker-Mutant | -5/Factory Hacker-Gunner | -4/Factory Resources | -11 -10 -10 -9 -9 -6 -6 -6 -5 -5 -5 -4 ----------- Run | Yrd Mat Sub Rec Scr Fac Was Fac Fac Was Fac Fac Matter Collected 1836 | 279 302 443 231 60 411 . 70 . . 40 . Remotely . | . . . . . . . . . . . . Salvage Created 1365 | 84 451 245 . . 477 . 108 . . . . Parts 67 | 8 25 17 . . 15 . 2 . . . . Haulers Intercepted 3 | . 2 . . . . . 1 . . . . Recyclers Shooed 2 | . 1 . . . 1 . . . . . . Parts Field Recycled . | . . . . . . . . . . . . Retrieved Matter . | . . . . . . . . . . . . Parts Self-Destructed 13 | . . 13 . . . . . . . . . Prevented . | . . . . . . . . . . . . Kills | -11 -10 -10 -9 -9 -6 -6 -6 -5 -5 -5 -4 ------- Run | Yrd Mat Sub Rec Scr Fac Was Fac Fac Was Fac Fac Combat Hostiles Destroyed 30 | . 11 12 . . 7 . . . . . . Guns 18 | . 11 5 . . 2 . . . . . . Cannons 8 | . . 7 . . 1 . . . . . . AOE 4 | . . . . . 4 . . . . . . Classes Destroyed 12 | 2 4 3 . . 2 . 1 . . . . Tunneler 1 | 1 . . . . . . . . . . . Hauler 3 | . 2 . . . . . 1 . . . . Recycler 2 | 1 . . . . 1 . . . . . . Operator 1 | . 1 . . . . . . . . . . Turret 2 | . . 2 . . . . . . . . . Watcher 1 | . . . . . . . 1 . . . . Swarmer 10 | . 6 4 . . . . . . . . . Grunt 13 | . 5 3 . . 5 . . . . . . Duelist 1 | . . . . . 1 . . . . . . Sentry 1 | . . 1 . . . . . . . . . Hunter 1 | . . . . . 1 . . . . . . Subdweller 4 | . . 4 . . . . . . . . . Best Kill Streak 5 | 1 5 4 . . 2 . 2 . . . . Combat Bots Only 5 | . 5 4 . . 2 . . . . . . Max Kills in Single Turn 2 | 1 1 1 . . 2 . 1 . . . . Gunslinging . | . . . . . . . . . . . . Exploded 2 | . . . . . 2 . . . . . . Melee . | . . . . . . . . . . . . Uniques/NPCs Destroyed . | . . . . . . . . . . . . Combat | -11 -10 -10 -9 -9 -6 -6 -6 -5 -5 -5 -4 -------- Run | Yrd Mat Sub Rec Scr Fac Was Fac Fac Was Fac Fac Hostile Shots Fired 574 | . 38 59 . . 264 . 11 . . 43 159 Missed 198 | . 12 18 . . 91 . 5 . . 15 57 Damage Taken 6179 | . 236 666 . . 2932 . 61 . . 461 1823 Core 1677 | . 28 85 . . 792 . 22 . . 340 410 Absorbed by Shields 206 | . . . . . 206 . . . . . . Regen/Repaired (Parts) 101 | . 25 . . 64 . . . . . 12 . Core Remaining (%) 56 | 100 . . . 54 . . 4 . . 66 . Volleys Fired 150 | 8 42 52 . . 47 . . . . . 1 Largest 3 | 2 2 3 . . 3 . . . . . 1 Hottest 207 | 40 100 143 . . 207 . . . . . 88 Shots Fired 297 | 16 76 105 . . 99 . . . . . 1 Gun 181 | 16 69 22 . . 73 . . . . . 1 Cannon 104 | . . 83 . . 21 . . . . . . Launcher 5 | . . . . . 5 . . . . . . Special 7 | . 7 . . . . . . . . . . Kinetic 213 | 16 69 90 . . 38 . . . . . . Thermal 79 | . 7 15 . . 56 . . . . . 1 Explosive 5 | . . . . . 5 . . . . . . Electromagnetic . | . . . . . . . . . . . . Robot Hit Streak 16 | 4 7 16 . . 14 . . . . . . Robot Miss Streak 4 | 2 4 3 . . 3 . . . . . 1 Penetration Max . | . . . . . . . . . . . . Secondary Targets . | . . . . . . . . . . . . Shots Hit Robots 187 | 11 37 61 . . 76 . 2 . . . . Core Hits 82 | 3 20 21 . . 33 . 1 . . . 4 Critical Kills 1 | . 1 . . . . . . . . . . Critical Parts Destroyed 1 | . 1 . . . . . . . . . . Critical Strikes 6 | . 2 2 . . 2 . . . . . . Burn 2 | . . . . . 2 . . . . . . Destroy 2 | . 2 . . . . . . . . . . Blast 2 | . . 2 . . . . . . . . . Melee Attacks 18 | . . . . . 13 2 3 . . . . Impact . | . . . . . . . . . . . . Slashing 18 | . . . . . 13 2 3 . . . . Piercing . | . . . . . . . . . . . . Sneak Attacks 2 | . . . . . . . 2 . . . . Combat Hostiles . | . . . . . . . . . . . . Follow-up Attacks . | . . . . . . . . . . . . Damage Inflicted 4586 | 164 472 1235 . . 2534 . 150 . . . 31 Guns 2120 | 164 472 342 . . 1142 . . . . . . Cannons 1160 | . . 893 . . 267 . . . . . . Explosions 729 | . . . . . 729 . . . . . . Melee 546 | . . . . . 396 . 150 . . . . Ramming 31 | . . . . . . . . . . . 31 Kinetic 2211 | 164 472 984 . . 591 . . . . . . Thermal 1349 | . . 251 . . 1098 . . . . . . Explosive 449 | . . . . . 449 . . . . . . Electromagnetic . | . . . . . . . . . . . . Impact . | . . . . . . . . . . . . Slashing 546 | . . . . . 396 . 150 . . . . Piercing . | . . . . . . . . . . . . Highest Corruption 10 | . . . . . 1 10 10 . 5 5 . Average Corruption 5 | . . . . . 1 7 10 . 5 5 . Corruption Purged . | . . . . . . . . . . . . Corruption Blocked . | . . . . . . . . . . . . Effects 7 | . . . . . 1 2 2 . 1 1 . Message Errors 3 | . . . . . 1 1 . . . 1 . Matter Fused 2 | . . . . . . . 1 . 1 . . Heat Flow Errors 1 | . . . . . . 1 . . . . . Energy Discharges 1 | . . . . . . . 1 . . . . Overload Shots . | . . . . . . . . . . . . Overflow Damage 37 | . . 7 . . 7 . 23 . . . . Projectiles 7 | . . 7 . . . . . . . . . Explosions 7 | . . . . . 7 . . . . . . Melee 23 | . . . . . . . 23 . . . . Knockbacks 7 | . . 7 . . . . . . . . . Impact . | . . . . . . . . . . . . Kinetic 7 | . . 7 . . . . . . . . . Secondary . | . . . . . . . . . . . . Self-Inflicted Damage 69 | . . . . . 69 . . . . . . Shots 2 | . . . . . 2 . . . . . . Rammed 11 | . . . . . . . . . . . 11 Targets Rammed 11 | . . . . . . . . . . . 11 Kicked . | . . . . . . . . . . . . Crushed . | . . . . . . . . . . . . Highest Temperature 356 | . 96 192 . . 356 206 . . . . 2 Average Temperature 79 | . 34 52 . . 116 108 . . . . 1 Received Heat Transfer 1382 | . 57 198 . . 708 . 18 . . 54 347 Effects 2 | . . . . . 1 1 . . . . . Energy Bleed 1 | . . . . . . 1 . . . . . Interference 1 | . . . . . 1 . . . . . . Siege Activations . | . . . . . . . . . . . . Robots Corrupted . | . . . . . . . . . . . . Combat Hostiles . | . . . . . . . . . . . . Parts Fried . | . . . . . . . . . . . . Impact Corruptions . | . . . . . . . . . . . . Robots Melted . | . . . . . . . . . . . . Combat Hostiles . | . . . . . . . . . . . . Parts Melted 3 | . . 1 . . 2 . . . . . . Heat Transferred 2185 | . . 333 . . 1852 . . . . . . Parts Sabotaged . | . . . . . . . . . . . . Parts Stolen . | . . . . . . . . . . . . Parts Stripped . | . . . . . . . . . . . . Power Chain Reactions . | . . . . . . . . . . . . Alert | -11 -10 -10 -9 -9 -6 -6 -6 -5 -5 -5 -4 ------- Run | Yrd Mat Sub Rec Scr Fac Was Fac Fac Was Fac Fac Peak Influence 535 | 10 231 . 190 . 535 188 191 93 62 104 55 Initial 156 | . 6 . 36 . . 156 131 93 32 43 38 Average 151 | 2 103 . 116 . 323 164 152 93 56 63 33 Maximum Alert Level 2 | . 1 . . . 2 . . . . . . Low Security (%) 71 | 100 76 . 100 . 20 100 100 100 100 100 100 Level 1 18 | . 23 . . . 38 . . . . . . Level 2 10 | . . . . . 40 . . . . . . Level 3 . | . . . . . . . . . . . . Level 4 . | . . . . . . . . . . . . Level 5 . | . . . . . . . . . . . . High Security . | . . . . . . . . . . . . Max Security . | . . . . . . . . . . . . Squads Dispatched 11 | . 2 . . . 7 . . . . 2 . Investigation 3 | . 1 . . . 1 . . . . 1 . Extermination . | . . . . . . . . . . . . Reinforcement 3 | . 1 . . . 1 . . . . 1 . Assault 2 | . . . . . 2 . . . . . . Garrison 3 | . . . . . 3 . . . . . . Intercept . | . . . . . . . . . . . . Searches Triggered . | . . . . . . . . . . . . Construction Impeded . | . . . . . . . . . . . . Haulers Reinforced 1 | . . . . . 1 . . . . . . Active Scanning Responses . | . . . . . . . . . . . . Cargo Convoy Interrupts . | . . . . . . . . . . . . Stealth | -11 -10 -10 -9 -9 -6 -6 -6 -5 -5 -5 -4 --------- Run | Yrd Mat Sub Rec Scr Fac Was Fac Fac Was Fac Fac Distress Signals 5 | . 1 . . . 2 . . . . . 2 Communications Jammed . | . . . . . . . . . . . . Distress Signals . | . . . . . . . . . . . . Times Spotted 111 | . 20 21 . . 32 6 2 1 5 9 15 Peak Tracking Total 18 | . 5 6 . . 10 6 2 1 5 7 18 Tactical Retreats 14 | . 5 5 . . 3 . . . . 1 . Traps | -11 -10 -10 -9 -9 -6 -6 -6 -5 -5 -5 -4 ------- Run | Yrd Mat Sub Rec Scr Fac Was Fac Fac Was Fac Fac Traps Triggered 8 | . 1 3 . . 1 . . 1 . 1 1 Indirectly . | . . . . . . . . . . . . Trap Hack Attempts . | . . . . . . . . . . . . Triggered . | . . . . . . . . . . . . Disarmed . | . . . . . . . . . . . . Reprogrammed . | . . . . . . . . . . . . Reused 1 | . . 1 . . . . . . . . . Traps Extracted . | . . . . . . . . . . . . Installed 1 | . . 1 . . . . . . . . . Triggered 1 | . . 1 . . . . . . . . . Most Traps Carried 1 | . . 1 . . . . . . . . . Objects Rigged 2 | . . . . . 2 . . . . . . Exploded 1 | . . . . . 1 . . . . . . Machines | -11 -10 -10 -9 -9 -6 -6 -6 -5 -5 -5 -4 ---------- Run | Yrd Mat Sub Rec Scr Fac Was Fac Fac Was Fac Fac Machines Disabled 10 | . . 2 . . 8 . . . . . . Max in Single Turn 3 | . . 1 . . 3 . . . . . . Machines Repaired . | . . . . . . . . . . . . Machines Dismantled . | . . . . . . . . . . . . Machines Sabotaged . | . . . . . . . . . . . . Overloaded Fab Kills . | . . . . . . . . . . . . Hacking | -11 -10 -10 -9 -9 -6 -6 -6 -5 -5 -5 -4 --------- Run | Yrd Mat Sub Rec Scr Fac Was Fac Fac Was Fac Fac Machines Accessed 35 | . 8 4 10 2 5 . . . . 3 3 Terminals 16 | . 6 . 4 . 2 . . . . 2 2 Fabricators 1 | . . . . . 1 . . . . . . Repair Stations 2 | . 1 . . . . . . . . 1 . Recycling Units 8 | . 1 . 5 . 1 . . . . . 1 Scanalyzers . | . . . . . . . . . . . . Garrison Access 1 | . . . . . 1 . . . . . . Total Hacks 85 | . 18 8 19 8 12 . . . . 9 11 Successful 53 | . 9 8 10 8 8 . . . . 5 5 Failed 32 | . 9 . 9 . 4 . . . . 4 6 Catastrophic 8 | . 2 . . . 2 . . . . 2 2 Database Lockouts . | . . . . . . . . . . . . Manual 55 | . 15 . 18 . 6 . . . . 8 8 Terminals 49 | . 14 . 11 . 6 . . . . 8 10 Fabricators 2 | . . . . . 2 . . . . . . Repair Stations 3 | . 2 . . . . . . . . 1 . Recycling Units 12 | . 2 . 7 . 2 . . . . . 1 Scanalyzers . | . . . . . . . . . . . . Garrison Access 2 | . . . . . 2 . . . . . . Terminal Hacks 21 | . 1 8 1 8 1 . . . . 1 1 Record 6 | . . 5 1 . . . . . . . . Robot Analysis 7 | . . . . 7 . . . . . . . Open Door 1 | . . 1 . . . . . . . . . Level Access Points 1 | . . . . . . . . . . 1 . Branch Access Points 1 | . . . . . . . . . . . 1 Alert Level 1 | . . . . . 1 . . . . . . Unreport Threat 1 | . 1 . . . . . . . . . . Derelict Proto ID Bank 2 | . . 1 . 1 . . . . . . . Release Object 1 | . . 1 . . . . . . . . . Fabricator Hacks 2 | . . . . . 2 . . . . . . Load Schematic 1 | . . . . . 1 . . . . . . Build 1 | . . . . . 1 . . . . . . Repair Station Hacks 2 | . 2 . . . . . . . . . . Scan Component 1 | . 1 . . . . . . . . . . Repair 1 | . 1 . . . . . . . . . . Recycling Unit Hacks 2 | . 1 . . . 1 . . . . . . Retrieve Components 2 | . 1 . . . 1 . . . . . . Scanalyzer . | . . . . . . . . . . . . Garrison Access Hacks . | . . . . . . . . . . . . Unauthorized Hacks 26 | . 5 . 9 . 4 . . . . 4 4 Terminals 19 | . 5 . 4 . 3 . . . . 3 4 Botnet 8 | . 2 . 1 . 1 . . . . 2 2 Skim 11 | . 3 . 3 . 2 . . . . 1 2 Fabricators . | . . . . . . . . . . . . Repair Stations 1 | . . . . . . . . . . 1 . Patch 1 | . . . . . . . . . . 1 . Recycling Units 6 | . . . 5 . 1 . . . . . . Recyclers 1 | . . . . . 1 . . . . . . Tunnel 5 | . . . 5 . . . . . . . . Scanalyzers . | . . . . . . . . . . . . Garrison Access . | . . . . . . . . . . . . Data Cores Recovered 1 | . 1 . . . . . . . . . . Used 1 | . 1 . . . . . . . . . . Hacking Detections 20 | . 7 . 4 . 4 . . . . 2 3 Full Trace Events 1 | . . . . . 1 . . . . . . Feedback Events . | . . . . . . . . . . . . Feedback Blocked . | . . . . . . . . . . . . Robot Schematics Acquired . | . . . . . . . . . . . . Robots Built . | . . . . . . . . . . . . Authchips . | . . . . . . . . . . . . Time . | . . . . . . . . . . . . Total Robot Build Rating . | . . . . . . . . . . . . Part Schematics Acquired 16 | . . . . 5 6 1 . 1 . . 3 Parts Built 1 | . . . . . 1 . . . . . . Authchips . | . . . . . . . . . . . . Time 187 | . . . . . 187 . . . . . . Total Part Build Rating 7 | . . . . . 7 . . . . . . Parts Repaired 1 | . 1 . . . . . . . . . . Time 26 | . 26 . . . . . . . . . . Parts Recycled . | . . . . . . . . . . . . Recycled Matter . | . . . . . . . . . . . . Retrieved Matter . | . . . . . . . . . . . . Retrieved Components 15 | . 8 . . . 7 . . . . . . Parts Scanalyzed . | . . . . . . . . . . . . Part Schematics Acquired . | . . . . . . . . . . . . Parts Damaged . | . . . . . . . . . . . . Bothacking | -11 -10 -10 -9 -9 -6 -6 -6 -5 -5 -5 -4 ------------ Run | Yrd Mat Sub Rec Scr Fac Was Fac Fac Was Fac Fac Used RIF Installer . | . . . . . . . . . . . . Robots Hacked . | . . . . . . . . . . . . Non-combat . | . . . . . . . . . . . . Combat . | . . . . . . . . . . . . Robot Hacks Applied . | . . . . . . . . . . . . Relay Couplers Released . | . . . . . . . . . . . . Fabnet Peak Effective % . | . . . . . . . . . . . . Robots Rewired . | . . . . . . . . . . . . Allies Hacked . | . . . . . . . . . . . . Hacks Repelled . | . . . . . . . . . . . . Allies | -11 -10 -10 -9 -9 -6 -6 -6 -5 -5 -5 -4 -------- Run | Yrd Mat Sub Rec Scr Fac Was Fac Fac Was Fac Fac Total Allies 1 | . . . . 1 . . . . . . . Largest Group 1 | . . . . 1 1 . . . . . . Highest-Rated Group 65 | . . . . 65 65 . . . . . . Highest-Rated Ally 65 | . . . . 65 65 . . . . . . Total Orders . | . . . . . . . . . . . . Ally Attacks 49 | . . . . . 49 . . . . . . Total Damage 1913 | . . . . . 1913 . . . . . . Kills 14 | . . . . . 14 . . . . . . Allies Corrupted . | . . . . . . . . . . . . Allies Melted 1 | . . . . . 1 . . . . . . Intel | -11 -10 -10 -9 -9 -6 -6 -6 -5 -5 -5 -4 ------- Run | Yrd Mat Sub Rec Scr Fac Was Fac Fac Was Fac Fac Robot Analysis Total 7 | . . . . 7 . . . . . . . Derelict Logs Recovered 5 | . . 3 . 2 . . . . . . . Drone Launches . | . . . . . . . . . . . . Drone Recoveries . | . . . . . . . . . . . . Exploration | -11 -10 -10 -9 -9 -6 -6 -6 -5 -5 -5 -4 ------------- Run | Yrd Mat Sub Rec Scr Fac Was Fac Fac Was Fac Fac Turns Passed 7292 | 141 976 2417 433 2209 678 67 45 24 34 38 230 Spaces Moved 4518 | 63 447 1350 260 1293 454 151 90 51 72 86 201 Core 214 | 2 . . . . 108 . . . . 20 84 Treads 3593 | 61 447 1350 260 1293 141 . . . . . 41 Legs 87 | . . . . . 87 . . . . . . Wheels 76 | . . . . . . . . . . . 76 Hover . | . . . . . . . . . . . . Flight 548 | . . . . . 118 151 90 51 72 66 . Fastest Speed 39 | 50 160 160 160 160 40 40 40 40 40 39 50 Average Speed 138 | 156 160 160 160 160 96 40 40 40 40 41 84 Slowest Speed 260 | 160 160 160 160 160 260 40 40 40 40 50 145 Overloaded Moves . | . . . . . . . . . . . . Propulsion Burnouts . | . . . . . . . . . . . . Robots Hopped . | . . . . . . . . . . . . Cave-ins Triggered . | . . . . . . . . . . . . Exploration Rate (%) 40 | 4 79 62 73 85 12 79 3 2 73 5 8 Regions Visited 11 Branch Regions 3 Pre-discovered Areas 5 | . . . 5 . . . . . . . . Known Exits Taken 3 | . . 1 . . . . 1 . . 1 . Unknown Exits Taken 4 | 1 1 . 1 1 . . . . . . . Scrap Searched 10 | . . 7 . 3 . . . . . . . Spaces Dug 8 | . 3 1 . . 1 2 1 . . . . Terrain Destroyed 77 | . 3 9 . . 61 2 1 . . . 1 Melee 4 | . . . . . 1 2 1 . . . . Projectile 13 | . 3 9 . . . . . . . . 1 AOE 60 | . . . . . 60 . . . . . . Terrain Rammed . | . . . . . . . . . . . . Walls Destroyed . | . . . . . . . . . . . . Machines Disabled . | . . . . . . . . . . . . Actions | -11 -10 -10 -9 -9 -6 -6 -6 -5 -5 -5 -4 --------- Run | Yrd Mat Sub Rec Scr Fac Was Fac Fac Was Fac Fac Total 5237 | 86 616 1518 278 1441 583 153 93 53 78 87 251 Wait 304 | 5 104 50 13 106 13 . 1 . . . 12 Move 4509 | 62 446 1349 259 1292 454 150 89 51 71 85 201 Hop . | . . . . . . . . . . . . Pick Up 68 | 4 7 22 2 18 9 1 . . 4 . 1 Fast Attach 57 | 7 2 6 1 4 18 . . 2 . 1 16 Attach 21 | . 1 6 . . 14 . . . . . . Detach 4 | . . 1 . . 2 . . . . . 1 Swap 16 | . 8 6 . 1 1 . . . . . . Drop 76 | . 6 25 3 20 10 . . . 3 1 8 Fire 150 | 8 42 52 . . 47 . . . . . 1 Melee 18 | . . . . . 13 2 3 . . . . Ram . | . . . . . . . . . . . . Kick . | . . . . . . . . . . . . Crush 11 | . . . . . . . . . . . 11 Escape Stasis . | . . . . . . . . . . . . Rewire . | . . . . . . . . . . . . Trap 3 | . . 1 . . 2 . . . . . . Miscellaneous . | . . . . . . . . . . . . Route ------- -11/Scrapyard -10/Materials (discovered 5 exits: [*Mat x2] / [*Min x2] / *Sub) -10/Subcaves (discovered 3 exits: Mat x2 / *Rec) -9/Recycling -9/Scraptown -6/Factory -6/Waste -6/Factory -5/Factory -5/Waste -5/Factory (discovered 4 exits: *Fac x4) -4/Factory (discovered 4 exits: Upp x2 / Ext x2) History --------- Turn | Location | Event 25 | -11/Scrapyard | Discovered new exit (range 15) 142 | -11/Scrapyard | Entered Materials 313 | -10/Materials | Discovered new exit (range 11) 316 | -10/Materials | Build established: Mutant 398 | -10/Materials | Discovered new exit (range 8) 639 | -10/Materials | Repaired Ion Engine 974 | -10/Materials | Discovered new exit (range 6) 1000 | -10/Materials | Discovered new exit (range 16) 1104 | -10/Materials | Discovered new exit (range 3) 1118 | -10/Materials | Entered Subcaves 1130 | -10/Subcaves | Learned Materials stockpile data 1176 | -10/Subcaves | Learned Materials stockpile data 1196 | -10/Subcaves | Shifting Twisted Machinery released Sub. Beam Cannon 1200 | -10/Subcaves | Shifting Twisted Machinery released Sub. Power Source 1465 | -10/Subcaves | Visited Clippyterm 1470 | -10/Subcaves | Identified exit to Materials 1470 | -10/Subcaves | Identified exit to Recycling 1470 | -10/Subcaves | Learned Factory emergency access door positions 1570 | -10/Subcaves | Shifting Twisted Machinery released Battle Rifle 1589 | -10/Subcaves | Shifting Twisted Machinery released Shrapnel Trap 1617 | -10/Subcaves | Learned 2 Materials zone layouts 1681 | -10/Subcaves | Visited 4L-MR0's lab 1701 | -10/Subcaves | Found Rainbow Chip 1702 | -10/Subcaves | Attached Rainbow Chip, gained temporary slots: Power, Propulsion, Utility, Weapon 1803 | -10/Subcaves | A swath of the cavern ceiling suddenly collapsed 2358 | -10/Subcaves | Disturbed a concealed Subdweller 2549 | -10/Subcaves | Shifting Twisted Machinery released Spk. Treads 2576 | -10/Subcaves | Shifting Twisted Machinery released Sub. Machine Gun 2644 | -10/Subcaves | Build established: Derelict-Tank 3180 | -10/Subcaves | Build established: Derelict-Mutant 3264 | -10/Subcaves | A swath of the cavern ceiling suddenly collapsed 3401 | -10/Subcaves | Found SUBCON Basin 3535 | -10/Subcaves | Entered Recycling 3691 | -9/Recycling | Build established: Mutant 3910 | -9/Recycling | Scanned before Scraplab entrance 3932 | -9/Recycling | Entered Scraplab 3965 | -9/Recycling | Discovered new exit (range 3) 3968 | -9/Recycling | Entered Scraptown 4061 | -9/Scraptown | Visited UFD Registry 4061 | -9/Scraptown | Registered with UFD as "Phasedriver" 4079 | -9/Scraptown | Heard Great Nut preacher, LISTEN AND RECITE! 4084 | -9/Scraptown | Visited Cave Peace 4093 | -9/Scraptown | Visited CR-KLE's Repair Center 4104 | -9/Scraptown | CR-KLE repaired 2 parts 4170 | -9/Scraptown | Scanned Subdweller tech in exchange for log data 4175 | -9/Scraptown | Learned Research stockpile data 4176 | -9/Scraptown | Learned Factory stockpile data 4261 | -9/Scraptown | Tech Extrapolator generated special schematic: Machine Rigger 4626 | -9/Scraptown | Visited Awakened 4712 | -9/Scraptown | Visited Botcube Research 4724 | -9/Scraptown | Found Botcube 4750 | -9/Scraptown | Visited A0-MCA Data Center 4763 | -9/Scraptown | Given an A- rating by A0-MCA 4766 | -9/Scraptown | Found A0-MCA's Component Scanner 4795 | -9/Scraptown | Visited Science Guys 4851 | -9/Scraptown | Visited Curators Association 4952 | -9/Scraptown | Visited DA-N13 Charitable Foundation 4959 | -9/Scraptown | Found DCF Scrap (30 items) 4972 | -9/Scraptown | Tech Extrapolator generated special schematic: Vmp. Humpback 4994 | -9/Scraptown | Visited Analyses Database 5021 | -9/Scraptown | Visited Scrap Suit Storage 5047 | -9/Scraptown | Visited Chapter 10 5088 | -9/Scraptown | Visited Scrapoid Pod Storage 5117 | -9/Scraptown | Visited Modified Component R&D 5511 | -9/Scraptown | Found Scrap Suit 5638 | -9/Scraptown | Botcube activated 5660 | -9/Scraptown | Botcube completed mutation into legged form, armed with 2 guns. 5991 | -9/Scraptown | Build established: Derelict-Mutant 6102 | -9/Scraptown | Discovered new exit (range 5) 6177 | -9/Scraptown | Entered Factory 6177 | -6/Factory | Accompanied by 1 ally 6177 | -6/Factory | Evolved 8 slots: Propulsion x1, Utility x6, Weapon x1 6261 | -6/Factory | Garrison activated, responded to threat 6414 | -6/Factory | Fabricated Machine Rigger (x1) 6526 | -6/Factory | Lost 3 parts (2n1u) 6527 | -6/Factory | First assault squad dispatched 6654 | -6/Factory | Core integrity fell below 50% 6718 | -6/Factory | Lost 13 parts (1p4n4u4w) 6765 | -6/Factory | Core integrity fell below 20% 6832 | -6/Factory | Lost 5 parts (1p3u1w) 6855 | -6/Factory | Sucked down chute 6855 | -6/Factory | Entered Waste 6870 | -6/Waste | EMP discharged 6870 | -6/Waste | System corruption reached 10% 6889 | -6/Waste | Spotted C-40 Crusher 6891 | -6/Waste | Spotted C-40 Crusher 6891 | -6/Waste | Spotted C-40 Crusher 6902 | -6/Waste | Spotted C-40 Crusher 6903 | -6/Waste | Spotted C-40 Crusher 6905 | -6/Waste | Spotted C-40 Crusher 6914 | -6/Waste | Discovered new exit (range 16) 6922 | -6/Waste | Identified exit to Factory 6922 | -6/Waste | Entered Factory 6950 | -6/Factory | Discovered new exit (range 15) 6967 | -6/Factory | Identified exit to Factory 6967 | -6/Factory | Entered another Factory area 6967 | -5/Factory | Evolved 2 slots: Power x1, Propulsion x1 6991 | -5/Factory | Sucked down chute 6991 | -5/Factory | Entered Waste 6995 | -5/Waste | Spotted C-40 Crusher 6995 | -5/Waste | Spotted C-40 Crusher 7006 | -5/Waste | EMP discharged 7009 | -5/Waste | Spotted C-40 Crusher 7014 | -5/Waste | Spotted C-40 Crusher 7019 | -5/Waste | Discovered new exit (range 16) 7020 | -5/Waste | Spotted C-40 Crusher 7020 | -5/Waste | Spotted C-40 Crusher 7025 | -5/Waste | Identified exit to Factory 7025 | -5/Waste | Entered Factory 7028 | -5/Factory | Build established: Hacker-Mutant 7046 | -5/Factory | Identified exit to Factory 7063 | -5/Factory | Entered another Factory area 7063 | -4/Factory | Evolved 2 slots: Utility x1, Weapon x1 7072 | -4/Factory | Tech Extrapolator generated special schematic: Vmp. Heavy Siege Treads 7085 | -4/Factory | Lost 4 parts (2n2u) 7108 | -4/Factory | Found Prototype Launcher 7108 | -4/Factory | Identified Com. Tesla Bomb Launcher 7158 | -4/Factory | Tech Extrapolator generated special schematic: Wartreads 7162 | -4/Factory | Identified exit to Upper Caves 7162 | -4/Factory | Identified exit to Extension 7293 | -4/Factory | Self-destructed Last Messages --------------- 07263_ Thermic Laser destroyed. 07264_ U-05 Engineer builds a Door. 07264_ Adv. Medium Treads destroyed. 07265_ Penetrated by Slug. 07265_ Critical hit (Destroy). 07265_ Adv. Medium Treads destroyed. 07265_ Slug penetrates Fusion Modulator. 07266_ Fusion Modulator explodes. 07266_ U-05 Engineer destroyed. 07266_ Dropped Med. Storage Unit. 07266_ Dropped Adv. Plasma Rifle. 07289_ W-44 Eye sends out distress signal. 07292_ Triggered Ambush Trap. 07292_ L-61 Swordsman emerges from a hatch in the floor. 07292_ S-27 Virus emerges from a hatch in the floor. 07292_ G-67 Veteran emerges from a hatch in the floor. 07292_ Critical hit (Burn: +50). Map ----- +----------------------------------------------------+ | ?????????????????????????????????????????????????? | | ?????????????????????????????????????????????????? | | ?????????????????????????????????????????????????? | | ?????????????????????????????????????????????????? | | ?????????????????????????????????????????????????? | | ?????????????????????????????????????????????????? | | ?????????????????????????????????????????????????? | | ?????????????????????????????????????????????????? | | ?????????????????????????????????????????????????? | | ?????????????????????????????????????????????????? | | ?????????????????????????????????????????????????? | | ?????????????????????????????????????????????????? | | ?????????????????????????????????????????????????? | | ?????????????????????????????????????????????????? | | ???????????????????????????????? ????????????????? | | ??????????????????????????????? #??????????????? | | ??????????????????????????????? #??????????????? | | ??????????????????????????????? #??????????????? | | ??????????????????????????????# #??????????????? | | ??????????????????????????????# #??????????????? | | ??????????????????????????????# #??????????????? | | ??????????????????????????????# #??????????????? | | ??????????????????????????????# #??????????????? | | ??????????????????????????????# #??????????????? | | ????????????????##+############ #??????????????? | | ???????????????## g @s[[[ #??????????????? | | ??????????g gu u [[[ k #??????????????? | | ?????????????#### ==l [[[ #??? ? ????????? | | ????????????????# =k """ #???"" ""??????? | | ????????????????# """ #??""" "???????? | | ????????????????# """ #??""" "???????? | | ????????????????# R #? ???????? | | ??????????????? !#? """ "???????? | | ?????????????? ########### # """ "???????? | | ????????????? ??????????# # """ """ ???? | | ??????????????#####??????????## + #?? | | ?????????????????????????????# # #?? | | ?????????????????????????????#T #############??? | | ?????????????????????????###### #? ??????? | | ????????????????????????"""""?# #? """"??????? | | ????????????????????????""""" # # """"??????? | | ????????????????????????""""" # # """"??????? | | ????????????????????????""""" + + """"??????? | | ?????????????????????# # # """"??????? | | ?????????????????????# !# # """"??????? | | ?????????????????????# ""T"" ?# #? """"??????? | | ?????????????????????# """"" ?# #? ??????? | | ??????????????????????? ??# #??#######?????? | | ??????????????????????###+##??# #??????????????? | | ??????????????????????????????# #??????????????? | +----------------------------------------------------+ Best States ------------- Heat Dissipation 75 Energy Generation 23 Energy Capacity 450 Matter Stores 300 Matter Capacity 300 Sight Range 16 Terrain Scan Range 20 Terrain Scan Density 10 Armor Coverage 150 Phase Shifting 5 Evasion (%) 62 Melee Accuracy 8 Recoil Reduction 4 Offensive Hacking 10 Defensive Hacking 20 Item Schematics ----------------- Spk. Treads | -9/Scraptown | Extrapolated Mak. Leg | -9/Scraptown | Extrapolated Machine Rigger | -9/Scraptown | Extrapolated Mak. Light Armor Plating | -9/Scraptown | Extrapolated Vmp. Humpback | -9/Scraptown | Extrapolated Mak. Coolant Network | -6/Factory | Extrapolated Hvy. Battle Rifle | -6/Factory | Extrapolated Mak. Power Source | -6/Factory | Extrapolated Spk. Medium Treads | -6/Factory | Extrapolated 0b10 Decoder Chip [Generic] | -6/Factory | Extrapolated 0b10 Decoder Chip [Scout] | -6/Factory | Extrapolated Spk. Heavy Treads | -6/Waste | Extrapolated Mak. Terrain Scanner | -5/Factory | Extrapolated Vmp. Heavy Siege Treads | -4/Factory | Extrapolated Wartreads | -4/Factory | Extrapolated 0b10 Decoder Chip [Skirmisher] | -4/Factory | Extrapolated Robot Schematics ------------------ None Fabricated ------------ Machine Rigger | x1 | -6/Factory Alien Tech Used ----------------- None Achievements -------------- None Challenges ------------ None Game ------ Seed FactoryCatalystNukerbomber Manual? 0 Play Time 00:59:06 Cumulative 341.8 hours Start 2024.09.08 @ 18:04:13 End 2024.09.08 @ 20:58:43 Sessions 3 Manual Loads 0 Difficulty Rogue Special Mode None Game No. 347 Rogue 342 Adventurer 5 Explorer 0 Win Type - Total 5 Types 4/0/0/1/0/0/0/0/0 Lore% 77 Gallery% 83 Achievement% 68 Wizard Run 0 Options --------- Layout 1 ASCII 0 Keyboard 0 Movement Mouse Keybinds 0 Fullscreen 1 Font 24/Terminus Map View 50x35 Zoom Use 0% Tactical HUD 1 Map Filters NONE Filters NONE Steam 1 RUN: d7fe8983-923f-4a45-b47c-f0a0651c1ca1